[Event "EYCC Open-U12 2019"]
[Site "Bratislava"]
[Date "2019.08.04"]
[Round "3.29"]
[White "Cherneyko, Ivan"]
[Black "Meers, Hubert"]
[Result "0-1"]
[ECO "E94"]
[WhiteElo "1743"]
[BlackElo "2141"]
[Annotator "NA"]
[PlyCount "38"]
[EventDate "2019.08.02"]
[EventType "swiss"]
[EventCountry "SVK"]
[SourceTitle "playchess.com"]
[Source "ChessBase"]
[SourceQuality "1"]
[TimeControl "40/5400+30:1800+30"]

1. d4 {[%emt 0:00:00]} Nf6 {[%emt 0:00:00]} 2. c4 {[%emt 0:00:00]} g6 {[%emt 0:00:00]} 3. Nc3 {[%emt 0:00:00]} Bg7 {[%emt 0:00:01]} 4. e4 {[%emt 0:00:00]} d6 {[%emt 0:00:03]} 5. Nf3 {[%emt 0:00:03]} O-O {[%emt 0:00:05]} 6. Be2 {[%emt 0:00:04]} e5 {[%emt 0:00:08]} 7. O-O {[%emt 0:00:19]} exd4 {[%emt 0:00:54]} 8. Nxd4 {[%emt 0:00:09]} Re8 {[%emt 0:00:55]} 9. f3 {[%emt 0:00:19]} c6 {[%emt 0:02:38]} 10. Bg5 {[%emt 0:07:08]} Qb6 {[%emt 0:04:56]} 11. Na4 {[%emt 0:00:32]} Qa5 {[%emt 0:01:18]} 12. Bd2 {[%emt 0:02:45]} Qc7 {[%emt 0:01:11]} 13. Be1 {[%emt 0:22:24]} Nh5 {[%emt 0:10:53]} 14. Qd2 {[%emt 0:23:48]} d5 {[%emt 0:12:04]} 15. cxd5 {[%emt 0:08:23]} Nf4 {[%emt 0:01:14]} 16. Bf2 {[%emt 0:00:48]} cxd5 {[%emt 0:07:29]} 17. Nb5 {[%emt 0:02:17]} Qe5 {[%emt 0:02:22]} 18. Bd4 {[%emt 0:01:01]} Qg5 {[%emt 0:00:13]} 19. Qxf4 {[%emt 0:07:55]} Bxd4+ {[%emt 0:00:39]} 0-1

[Event "EYCC Open-U12 2019"]
[Site "Bratislava"]
[Date "2019.08.04"]
[Round "3.30"]
[White "Soderstrom, Adrian"]
[Black "Ivanov, Svetlen"]
[Result "1-0"]
[ECO "B40"]
[WhiteElo "1970"]
[BlackElo "1717"]
[Annotator "NA"]
[PlyCount "57"]
[EventDate "2019.08.02"]
[EventType "swiss"]
[EventCountry "SVK"]
[SourceTitle "playchess.com"]
[Source "ChessBase"]
[SourceQuality "1"]
[TimeControl "40/5400+30:1800+30"]

1. e4 {[%emt 0:00:00]} c5 {[%emt 0:00:00]} 2. Nf3 {[%emt 0:00:00]} e6 {[%emt 0:00:00]} 3. c3 {[%emt 0:00:06]} Nf6 {[%emt 0:00:32]} 4. e5 {[%emt 0:00:07]} Nd5 {[%emt 0:00:05]} 5. d4 {[%emt 0:00:17]} cxd4 {[%emt 0:00:19]} 6. cxd4 {[%emt 0:00:17]} Be7 {[%emt 0:00:36]} 7. Bc4 {[%emt 0:00:40]} d6 {[%emt 0:00:27]} 8. O-O {[%emt 0:01:09]} O-O {[%emt 0:00:18]} 9. exd6 {[%emt 0:00:26]} Bxd6 {[%emt 0:00:32]} 10. Nc3 {[%emt 0:03:02]} Nxc3 {[%emt 0:03:47]} 11. bxc3 {[%emt 0:00:11]} Qa5 {[%emt 0:03:44]} 12. Bd2 {[%emt 0:11:29]} Bd7 {[%emt 0:07:47]} 13. Re1 {[%emt 0:10:02]} Qh5 {[%emt 0:13:01]} 14. Qc2 {[%emt 0:16:51]} Bc6 {[%emt 0:13:02]} 15. Ne5 {[%emt 0:11:04]} Nd7 {[%emt 0:02:48]} 16. Be2 {[%emt 0:04:11]} Qh4 {[%emt 0:02:53]} 17. g3 {[%emt 0:09:11]} Qd8 {[%emt 0:03:56]} 18. Nxc6 {[%emt 0:00:24]} bxc6 {[%emt 0:00:06]} 19. Qe4 {[%emt 0:04:22]} Qc7 {[%emt 0:02:42]} 20. Bd3 {[%emt 0:00:53]} Nf6 {[%emt 0:00:09]} 21. Qh4 {[%emt 0:00:58]} Be7 {[%emt 0:06:18]} 22. Bg5 {[%emt 0:05:01]} h6 {[%emt 0:05:15]} 23. Bxh6 {[%emt 0:01:17]} gxh6 {[%emt 0:00:53]} 24. Qxh6 {[%emt 0:00:18]} Rfd8 {[%emt 0:00:40]} 25. Re5 {[%emt 0:00:46]} Rd5 {[%emt 0:00:13]} 26. Rae1 {[%emt 0:02:46]} Bd8 {[%emt 0:05:24]} 27. c4 {[%emt 0:02:48]} Rxe5 {[%emt 0:04:01]} 28. dxe5 {[%emt 0:00:21]} Nd7 {[%emt 0:01:42]} 29. Bh7+ {[%emt 0:00:16]} 1-0

[Event "EYCC Open-U12 2019"]
[Site "Bratislava"]
[Date "2019.08.04"]
[Round "3.31"]
[White "Herwy, Jakub"]
[Black "Cohen, Elad"]
[Result "0-1"]
[ECO "C24"]
[WhiteElo "1685"]
[BlackElo "2002"]
[Annotator "NA"]
[PlyCount "90"]
[EventDate "2019.08.02"]
[EventType "swiss"]
[EventCountry "SVK"]
[SourceTitle "playchess.com"]
[Source "ChessBase"]
[SourceQuality "1"]
[TimeControl "40/5400+30:1800+30"]

1. e4 {[%emt 0:00:00]} e5 {[%emt 0:00:00]} 2. Bc4 {[%emt 0:00:46]} Nf6 {[%emt 0:00:10]} 3. d3 {[%emt 0:00:08]} Nc6 {[%emt 0:00:18]} 4. Nc3 {[%emt 0:00:08]} Bb4 {[%emt 0:00:15]} 5. Nge2 {[%emt 0:00:25]} d5 {[%emt 0:00:57]} 6. exd5 {[%emt 0:00:19]} Nxd5 {[%emt 0:00:38]} 7. O-O {[%emt 0:01:04]} Be6 {[%emt 0:01:28]} 8. Bxd5 {[%emt 0:10:01]} Bxd5 {[%emt 0:00:27]} 9. Be3 {[%emt 0:00:53]} O-O {[%emt 0:08:18]} 10. a3 {[%emt 0:01:08]} Bxc3 {[%emt 0:01:06]} 11. Nxc3 {[%emt 0:00:08]} Ne7 {[%emt 0:07:14]} 12. Bc5 {[%emt 0:06:23]} Bc6 {[%emt 0:06:04]} 13. Qe2 {[%emt 0:01:49]} b6 {[%emt 0:06:08]} 14. Bxe7 {[%emt 0:01:58]} Qxe7 {[%emt 0:01:16]} 15. d4 {[%emt 0:06:01]} Rfe8 {[%emt 0:01:50]} 16. Rae1 {[%emt 0:03:29]} e4 {[%emt 0:05:38]} 17. d5 {[%emt 0:04:43]} Bd7 {[%emt 0:06:37]} 18. Nxe4 {[%emt 0:01:09]} f5 {[%emt 0:01:04]} 19. Nc3 {[%emt 0:03:34]} Qxe2 {[%emt 0:01:07]} 20. Rxe2 {[%emt 0:00:06]} Rxe2 {[%emt 0:00:51]} 21. Nxe2 {[%emt 0:00:51]} Bb5 {[%emt 0:01:05]} 22. Nd4 {[%emt 0:02:50]} Bxf1 {[%emt 0:03:56]} 23. Kxf1 {[%emt 0:00:05]} Kf7 {[%emt 0:03:54]} 24. Nxf5 {[%emt 0:00:10]} Kf6 {[%emt 0:02:22]} 25. Nd4 {[%emt 0:00:55]} Ke5 {[%emt 0:05:11]} 26. Ne6 {[%emt 0:00:33]} Rg8 {[%emt 0:05:54]} 27. Nxc7 {[%emt 0:08:31]} Rc8 {[%emt 0:00:50]} 28. Nb5 {[%emt 0:03:53]} Rxc2 {[%emt 0:02:57]} 29. b4 {[%emt 0:04:22]} a6 {[%emt 0:02:16]} 30. Na7 {[%emt 0:00:51]} Kxd5 {[%emt 0:00:48]} 31. b5 {[%emt 0:00:06]} a5 {[%emt 0:02:24]} 32. h4 {[%emt 0:00:33]} Rc3 {[%emt 0:01:50]} 33. h5 {[%emt 0:00:50]} Rxa3 {[%emt 0:01:04]} 34. Nc8 {[%emt 0:00:06]} Kc5 {[%emt 0:01:02]} 35. g4 {[%emt 0:00:24]} Kxb5 {[%emt 0:01:47]} 36. Nd6+ {[%emt 0:00:05]} Kc6 {[%emt 0:02:16]} 37. Nf5 {[%emt 0:00:14]} b5 {[%emt 0:02:11]} 38. Ke2 {[%emt 0:00:35]} b4 {[%emt 0:01:27]} 39. Kd1 {[%emt 0:00:09]} Ra1+ {[%emt 0:01:20]} 40. Kc2 {[%emt 0:00:00]} a4 {[%emt 0:00:00]} 41. Nxg7 {[%emt 0:00:31]} b3+ {[%emt 0:02:19]} 42. Kb2 {[%emt 0:00:17]} Ra2+ {[%emt 0:00:42]} 43. Kb1 {[%emt 0:00:03]} Rxf2 {[%emt 0:00:22]} 44. Ne6 {[%emt 0:00:08]} Kd5 {[%emt 0:00:56]} 45. Nc7+ {[%emt 0:00:18]} Kc4 {[%emt 0:00:22]} 0-1

[Event "EYCC Open-U12 2019"]
[Site "Bratislava"]
[Date "2019.08.04"]
[Round "3.32"]
[White "De Winter, Arthur"]
[Black "Andreev, Konstantin"]
[Result "1-0"]
[ECO "B34"]
[WhiteElo "1859"]
[BlackElo "2271"]
[Annotator "NA"]
[PlyCount "159"]
[EventDate "2019.08.02"]
[EventType "swiss"]
[EventCountry "SVK"]
[SourceTitle "playchess.com"]
[Source "ChessBase"]
[SourceQuality "1"]
[TimeControl "40/5400+30:1800+30"]

1. e4 {[%emt 0:00:00]} c5 {[%emt 0:00:00]} 2. Nf3 {[%emt 0:00:00]} Nc6 {[%emt 0:00:00]} 3. d4 {[%emt 0:00:00]} cxd4 {[%emt 0:00:00]} 4. Nxd4 {[%emt 0:00:00]} Nf6 {[%emt 0:00:00]} 5. Nc3 {[%emt 0:00:00]} e5 {[%emt 0:00:00]} 6. Ndb5 {[%emt 0:00:00]} d6 {[%emt 0:00:35]} 7. Nd5 {[%emt 0:00:02]} Nxd5 {[%emt 0:00:32]} 8. exd5 {[%emt 0:00:06]} Nb8 {[%emt 0:00:14]} 9. a4 {[%emt 0:00:32]} a6 {[%emt 0:00:40]} 10. Na3 {[%emt 0:00:06]} Be7 {[%emt 0:01:46]} 11. Be2 {[%emt 0:00:52]} O-O {[%emt 0:00:17]} 12. O-O {[%emt 0:00:22]} f5 {[%emt 0:00:34]} 13. Nc4 {[%emt 0:02:51]} Nd7 {[%emt 0:03:33]} 14. f4 {[%emt 0:01:43]} e4 {[%emt 0:02:24]} 15. Be3 {[%emt 0:00:27]} Qc7 {[%emt 0:05:55]} 16. a5 {[%emt 0:01:39]} h6 {[%emt 0:01:18]} 17. Qd2 {[%emt 0:10:44]} Bf6 {[%emt 0:03:48]} 18. Qb4 {[%emt 0:10:21]} Be7 {[%emt 0:02:06]} 19. Rfd1 {[%emt 0:09:20]} Rb8 {[%emt 0:17:39]} 20. Kh1 {[%emt 0:07:20]} Nc5 {[%emt 0:07:08]} 21. Bxc5 {[%emt 0:03:44]} dxc5 {[%emt 0:00:27]} 22. Qd2 {[%emt 0:00:05]} Bd6 {[%emt 0:02:16]} 23. Nxd6 {[%emt 0:00:26]} Qxd6 {[%emt 0:00:10]} 24. Qe3 {[%emt 0:04:37]} Bd7 {[%emt 0:00:46]} 25. Ra3 {[%emt 0:05:47]} Rfc8 {[%emt 0:01:46]} 26. Rb3 {[%emt 0:02:10]} c4 {[%emt 0:06:50]} 27. Rb6 {[%emt 0:00:08]} Qc5 {[%emt 0:00:33]} 28. Qc3 {[%emt 0:00:41]} Bb5 {[%emt 0:01:56]} 29. Qe5 {[%emt 0:06:37]} Qf8 {[%emt 0:06:46]} 30. Bh5 {[%emt 0:02:26]} Be8 {[%emt 0:02:33]} 31. Be2 {[%emt 0:03:24]} Bb5 {[%emt 0:00:48]} 32. d6 {[%emt 0:03:41]} Rd8 {[%emt 0:02:13]} 33. Bh5 {[%emt 0:02:23]} Be8 {[%emt 0:00:33]} 34. Qd5+ {[%emt 0:02:02]} Bf7 {[%emt 0:04:11]} 35. Qxf5 {[%emt 0:00:15]} Bxh5 {[%emt 0:02:48]} 36. Qxh5 {[%emt 0:00:15]} Qxf4 {[%emt 0:04:04]} 37. Qd5+ {[%emt 0:00:52]} Kh8 {[%emt 0:00:30]} 38. Qxc4 {[%emt 0:00:18]} Rbc8 {[%emt 0:01:58]} 39. Qe2 {[%emt 0:00:18]} Rc6 {[%emt 0:00:52]} 40. Rxc6 {[%emt 0:00:00]} bxc6 {[%emt 0:00:00]} 41. d7 {[%emt 0:00:34]} e3 {[%emt 0:02:09]} 42. Qxa6 {[%emt 0:01:52]} Qe4 {[%emt 0:01:25]} 43. Qe2 {[%emt 0:00:35]} Qe6 {[%emt 0:01:02]} 44. h3 {[%emt 0:00:12]} Rxd7 {[%emt 0:01:50]} 45. Rxd7 {[%emt 0:00:06]} Qxd7 {[%emt 0:00:07]} 46. Qxe3 {[%emt 0:00:03]} Qf7 {[%emt 0:01:47]} 47. Qf3 {[%emt 0:01:43]} Qc4 {[%emt 0:04:41]} 48. Qf8+ {[%emt 0:00:23]} Kh7 {[%emt 0:00:19]} 49. Qf5+ {[%emt 0:00:21]} Kh8 {[%emt 0:00:29]} 50. c3 {[%emt 0:01:30]} Qb3 {[%emt 0:03:07]} 51. Qc8+ {[%emt 0:00:36]} Kh7 {[%emt 0:00:11]} 52. Qxc6 {[%emt 0:00:53]} Qxb2 {[%emt 0:00:48]} 53. Qe4+ {[%emt 0:01:22]} Kh8 {[%emt 0:00:13]} 54. Qe5 {[%emt 0:01:05]} Qf2 {[%emt 0:01:10]} 55. Qb8+ {[%emt 0:00:17]} Kh7 {[%emt 0:00:17]} 56. Qb1+ {[%emt 0:00:05]} Kh8 {[%emt 0:00:38]} 57. Qa1 {[%emt 0:00:46]} Qa7 {[%emt 0:00:50]} 58. a6 {[%emt 0:00:15]} g5 {[%emt 0:01:07]} 59. c4+ {[%emt 0:00:18]} Kg8 {[%emt 0:00:15]} 60. c5 {[%emt 0:00:30]} g4 {[%emt 0:00:12]} 61. hxg4 {[%emt 0:00:16]} h5 {[%emt 0:01:20]} 62. c6 {[%emt 0:01:03]} hxg4 {[%emt 0:03:23]} 63. c7 {[%emt 0:00:09]} Qc5 {[%emt 0:00:04]} 64. Qa2+ {[%emt 0:03:45]} Kf8 {[%emt 0:00:59]} 65. a7 {[%emt 0:00:55]} Qc1+ {[%emt 0:01:04]} 66. Kh2 {[%emt 0:00:04]} Qh6+ {[%emt 0:01:06]} 67. Kg3 {[%emt 0:00:19]} Qe3+ {[%emt 0:00:17]} 68. Kxg4 {[%emt 0:00:22]} Qe4+ {[%emt 0:00:42]} 69. Kh3 {[%emt 0:00:33]} Qh7+ {[%emt 0:00:24]} 70. Kg3 {[%emt 0:00:17]} Qxc7+ {[%emt 0:00:26]} 71. Kf3 {[%emt 0:00:30]} Qc3+ {[%emt 0:00:39]} 72. Ke2 {[%emt 0:00:16]} Qe5+ {[%emt 0:00:18]} 73. Kf1 {[%emt 0:00:13]} Qb5+ {[%emt 0:01:03]} 74. Kg1 {[%emt 0:00:09]} Kg7 {[%emt 0:00:48]} 75. a8=Q {[%emt 0:00:42]} Qc5+ {[%emt 0:00:32]} 76. Kf1 {[%emt 0:00:14]} Qb5+ {[%emt 0:00:44]} 77. Qe2 {[%emt 0:00:07]} Qf5+ {[%emt 0:01:03]} 78. Qaf3 {[%emt 0:00:18]} Qb1+ {[%emt 0:00:15]} 79. Qd1 {[%emt 0:00:11]} Qb5+ {[%emt 0:00:15]} 80. Qfd3 {[%emt 0:00:06]} 1-0

[Event "EYCC Open-U12 2019"]
[Site "Bratislava"]
[Date "2019.08.04"]
[Round "3.33"]
[White "Stevik, Patrik"]
[Black "Lavrencic, Matic"]
[Result "1/2-1/2"]
[ECO "B32"]
[WhiteElo "1941"]
[BlackElo "1564"]
[Annotator "NA"]
[PlyCount "118"]
[EventDate "2019.08.02"]
[EventType "swiss"]
[EventCountry "SVK"]
[SourceTitle "playchess.com"]
[Source "ChessBase"]
[SourceQuality "1"]
[TimeControl "40/5400+30:1800+30"]

1. e4 {[%emt 0:00:00]} c5 {[%emt 0:00:00]} 2. Nf3 {[%emt 0:00:00]} Nc6 {[%emt 0:00:00]} 3. d4 {[%emt 0:00:18]} cxd4 {[%emt 0:00:00]} 4. Nxd4 {[%emt 0:00:04]} e5 {[%emt 0:00:00]} 5. Nb5 {[%emt 0:00:06]} d6 {[%emt 0:00:01]} 6. N1c3 {[%emt 0:01:08]} a6 {[%emt 0:00:11]} 7. Na3 {[%emt 0:00:04]} Be7 {[%emt 0:00:13]} 8. Nd5 {[%emt 0:09:49]} Nf6 {[%emt 0:00:34]} 9. Nxf6+ {[%emt 0:14:23]} Bxf6 {[%emt 0:01:02]} 10. Be3 {[%emt 0:04:57]} O-O {[%emt 0:02:21]} 11. Nc4 {[%emt 0:01:38]} b5 {[%emt 0:03:13]} 12. Qxd6 {[%emt 0:11:44]} Qxd6 {[%emt 0:02:54]} 13. Nxd6 {[%emt 0:00:05]} Rd8 {[%emt 0:00:40]} 14. Nxc8 {[%emt 0:00:16]} Raxc8 {[%emt 0:00:11]} 15. c3 {[%emt 0:02:15]} Rd7 {[%emt 0:02:11]} 16. Be2 {[%emt 0:01:31]} Rb8 {[%emt 0:01:02]} 17. O-O {[%emt 0:02:05]} Rbd8 {[%emt 0:01:05]} 18. a4 {[%emt 0:01:34]} Rb8 {[%emt 0:01:30]} 19. axb5 {[%emt 0:00:23]} axb5 {[%emt 0:00:08]} 20. Ra6 {[%emt 0:01:00]} Rc7 {[%emt 0:00:20]} 21. Bb6 {[%emt 0:02:31]} Rcb7 {[%emt 0:00:18]} 22. Bc5 {[%emt 0:00:11]} Nd8 {[%emt 0:00:27]} 23. g3 {[%emt 0:01:49]} Ne6 {[%emt 0:00:11]} 24. Be3 {[%emt 0:02:12]} b4 {[%emt 0:00:12]} 25. h4 {[%emt 0:05:57]} bxc3 {[%emt 0:01:41]} 26. bxc3 {[%emt 0:00:03]} Rc7 {[%emt 0:00:46]} 27. Ra3 {[%emt 0:10:55]} Rbc8 {[%emt 0:00:47]} 28. c4 {[%emt 0:02:57]} Be7 {[%emt 0:00:40]} 29. Rc3 {[%emt 0:04:25]} Rb8 {[%emt 0:02:54]} 30. Rd1 {[%emt 0:02:30]} Bc5 {[%emt 0:00:30]} 31. Bxc5 {[%emt 0:06:18]} Rxc5 {[%emt 0:00:39]} 32. Rd5 {[%emt 0:03:08]} Rbc8 {[%emt 0:06:48]} 33. Ra3 {[%emt 0:05:05]} g6 {[%emt 0:04:10]} 34. h5 {[%emt 0:03:43]} Nd4 {[%emt 0:03:02]} 35. Bg4 {[%emt 0:01:51]} f5 {[%emt 0:01:15]} 36. exf5 {[%emt 0:00:04]} gxf5 {[%emt 0:00:25]} 37. Bh3 {[%emt 0:00:01]} Rxd5 {[%emt 0:02:25]} 38. cxd5 {[%emt 0:00:01]} Kg7 {[%emt 0:02:11]} 39. Ra6 {[%emt 0:00:17]} Rd8 {[%emt 0:01:30]} 40. Bg2 {[%emt 0:00:00]} e4 {[%emt 0:00:00]} 41. h6+ {[%emt 0:14:42]} Kf7 {[%emt 0:00:50]} 42. g4 {[%emt 0:03:47]} Rxd5 {[%emt 0:03:45]} 43. gxf5 {[%emt 0:00:22]} Re5 {[%emt 0:01:15]} 44. Ra7+ {[%emt 0:04:49]} Kg8 {[%emt 0:00:11]} 45. f6 {[%emt 0:01:08]} Nf5 {[%emt 0:01:59]} 46. Bh3 {[%emt 0:05:04]} Nxh6 {[%emt 0:01:44]} 47. Rg7+ {[%emt 0:00:13]} Kf8 {[%emt 0:01:48]} 48. Rxh7 {[%emt 0:00:16]} Nf7 {[%emt 0:00:08]} 49. Bc8 {[%emt 0:03:04]} Rg5+ {[%emt 0:00:41]} 50. Kf1 {[%emt 0:00:38]} Rg6 {[%emt 0:04:17]} 51. Rh4 {[%emt 0:00:17]} Nd6 {[%emt 0:00:42]} 52. Bd7 {[%emt 0:02:32]} Rxf6 {[%emt 0:00:10]} 53. Ke2 {[%emt 0:00:14]} Ke7 {[%emt 0:02:34]} 54. Bh3 {[%emt 0:00:21]} Rg6 {[%emt 0:05:54]} 55. Rf4 {[%emt 0:00:43]} Kd8 {[%emt 0:03:29]} 56. Ke3 {[%emt 0:01:03]} Kc7 {[%emt 0:01:14]} 57. Kd4 {[%emt 0:00:48]} Kc6 {[%emt 0:00:37]} 58. Ke5 {[%emt 0:00:25]} Kc5 {[%emt 0:01:02]} 59. Bf5 {[%emt 0:01:04]} Rg5 {[%emt 0:00:09] Kxe4} 1/2-1/2

[Event "EYCC Open-U12 2019"]
[Site "Bratislava"]
[Date "2019.08.04"]
[Round "3.34"]
[White "Bunic, Emanuel"]
[Black "Uritsky, Yonathan"]
[Result "0-1"]
[ECO "D71"]
[WhiteElo "1718"]
[BlackElo "2040"]
[Annotator "NA"]
[PlyCount "114"]
[EventDate "2019.08.02"]
[EventType "swiss"]
[EventCountry "SVK"]
[SourceTitle "playchess.com"]
[Source "ChessBase"]
[SourceQuality "1"]
[TimeControl "40/5400+30:1800+30"]

1. d4 {[%emt 0:00:00]} Nf6 {[%emt 0:00:00]} 2. c4 {[%emt 0:00:00]} g6 {[%emt 0:00:00]} 3. g3 {[%emt 0:00:00]} c5 {[%emt 0:00:05]} 4. Nf3 {[%emt 0:00:29]} cxd4 {[%emt 0:00:12]} 5. Nxd4 {[%emt 0:00:08]} Bg7 {[%emt 0:00:19]} 6. Bg2 {[%emt 0:00:14]} O-O {[%emt 0:00:12]} 7. O-O {[%emt 0:00:17]} Nc6 {[%emt 0:00:10]} 8. e3 {[%emt 0:01:04]} d6 {[%emt 0:03:12]} 9. Nc3 {[%emt 0:02:17]} Bd7 {[%emt 0:01:03]} 10. b3 {[%emt 0:00:58]} Qa5 {[%emt 0:02:11]} 11. Bb2 {[%emt 0:00:47]} Rac8 {[%emt 0:00:50]} 12. Re1 {[%emt 0:03:14]} Bg4 {[%emt 0:03:49]} 13. Qd2 {[%emt 0:02:25]} Qh5 {[%emt 0:03:23]} 14. Nxc6 {[%emt 0:04:54]} bxc6 {[%emt 0:00:10]} 15. Ne2 {[%emt 0:00:21]} e5 {[%emt 0:03:37]} 16. f4 {[%emt 0:04:07]} e4 {[%emt 0:03:13]} 17. Nc3 {[%emt 0:05:06]} Bf3 {[%emt 0:02:48]} 18. h3 {[%emt 0:03:21]} d5 {[%emt 0:02:09]} 19. Qf2 {[%emt 0:08:17]} Bg4 {[%emt 0:07:08]} 20. Qf1 {[%emt 0:09:46]} Be6 {[%emt 0:05:14]} 21. cxd5 {[%emt 0:03:14]} cxd5 {[%emt 0:00:22]} 22. Rec1 {[%emt 0:03:29]} Nd7 {[%emt 0:03:01]} 23. Na4 {[%emt 0:06:58]} Bxb2 {[%emt 0:02:54]} 24. Nxb2 {[%emt 0:00:06]} Nc5 {[%emt 0:01:29]} 25. g4 {[%emt 0:00:32]} Qh4 {[%emt 0:01:47]} 26. b4 {[%emt 0:01:42]} Qf6 {[%emt 0:01:21]} 27. Qe2 {[%emt 0:00:46]} Na6 28. a3 {[%emt 0:02:12]} Bd7 {[%emt 0:06:35]} 29. Rab1 {[%emt 0:01:54]} Qb6 {[%emt 0:01:48]} 30. Bf1 {[%emt 0:01:20]} Nc7 {[%emt 0:01:28]} 31. Qd2 {[%emt 0:01:33]} Ne6 {[%emt 0:02:37]} 32. Kg2 {[%emt 0:00:32]} d4 {[%emt 0:02:41]} 33. Nc4 {[%emt 0:02:12]} Qb8 {[%emt 0:05:14]} 34. Ne5 {[%emt 0:01:29]} Rcd8 {[%emt 0:03:36]} 35. Bc4 {[%emt 0:02:03]} Qb6 {[%emt 0:05:58]} 36. exd4 {[%emt 0:01:08]} Bc8 {[%emt 0:01:30]} 37. Bxe6 {[%emt 0:02:17]} Bxe6 {[%emt 0:01:10]} 38. Rc5 {[%emt 0:00:59]} Bd5 {[%emt 0:02:08]} 39. Qe3 {[%emt 0:01:33]} Qe6 {[%emt 0:04:29]} 40. Rbc1 {[%emt 0:00:00]} Rc8 {[%emt 0:00:00]} 41. g5 Rxc5 {[%emt 0:06:13]} 42. Rxc5 {[%emt 0:06:15]} Bb7 {[%emt 0:01:33]} 43. Ng4 {[%emt 0:00:51]} Rd8 {[%emt 0:01:05]} 44. Kg3 {[%emt 0:00:47]} Kg7 {[%emt 0:03:50]} 45. Qc3 {[%emt 0:00:38]} Bd5 {[%emt 0:05:59]} 46. Rc7 {[%emt 0:02:02]} Qa6 {[%emt 0:01:39]} 47. Qe3 {[%emt 0:03:56]} Qd3 {[%emt 0:02:19]} 48. Kf2 {[%emt 0:01:46]} Be6 {[%emt 0:03:54]} 49. Ne5 {[%emt 0:02:21]} Qd1 {[%emt 0:02:21]} 50. Rxa7 {[%emt 0:04:06]} Rxd4 {[%emt 0:00:34]} 51. Rc7 {[%emt 0:01:20]} Rd2+ {[%emt 0:00:13]} 52. Kg3 {[%emt 0:00:30]} Re2 {[%emt 0:01:28]} 53. Qc3 {[%emt 0:03:09]} Qg1+ {[%emt 0:00:09]} 54. Kh4 {[%emt 0:00:23]} Qf2+ {[%emt 0:02:10]} 55. Qg3 {[%emt 0:00:12]} Re3 {[%emt 0:01:01]} 56. Rxf7+ {[%emt 0:04:25]} Kg8 {[%emt 0:00:09]} 57. Nf3 {[%emt 0:01:54]} Rxf3 {[%emt 0:00:09]} 0-1

[Event "EYCC Open-U12 2019"]
[Site "Bratislava"]
[Date "2019.08.04"]
[Round "3.35"]
[White "Eliseev, Sergey"]
[Black "Radaca, Nasir"]
[Result "1-0"]
[ECO "A48"]
[WhiteElo "2053"]
[BlackElo "1639"]
[Annotator "NA"]
[PlyCount "103"]
[EventDate "2019.08.02"]
[EventType "swiss"]
[EventCountry "SVK"]
[SourceTitle "playchess.com"]
[Source "ChessBase"]
[SourceQuality "1"]
[TimeControl "40/5400+30:1800+30"]

1. d4 {[%emt 0:00:00]} Nf6 {[%emt 0:00:00]} 2. Nf3 g6 {[%emt 0:06:05]} 3. Bg5 {[%emt 0:00:00]} Bg7 {[%emt 0:00:47]} 4. Nbd2 {[%emt 0:00:03]} d5 {[%emt 0:00:37]} 5. c3 {[%emt 0:00:07]} O-O {[%emt 0:00:30]} 6. h3 {[%emt 0:00:08]} Re8 {[%emt 0:00:56]} 7. e3 {[%emt 0:02:05]} Bf5 {[%emt 0:01:40]} 8. Be2 {[%emt 0:09:00]} c6 {[%emt 0:02:24]} 9. O-O {[%emt 0:06:20]} Nbd7 {[%emt 0:00:17]} 10. Qb3 {[%emt 0:07:52]} Qb6 {[%emt 0:04:28]} 11. g4 {[%emt 0:10:37]} Be6 {[%emt 0:01:58]} 12. Bf4 {[%emt 0:16:53]} h5 {[%emt 0:05:43]} 13. Qxb6 {[%emt 0:06:28]} axb6 {[%emt 0:00:39]} 14. Ng5 {[%emt 0:01:48]} Nf8 {[%emt 0:07:38]} 15. Nxe6 {[%emt 0:09:05]} Nxe6 {[%emt 0:00:14]} 16. Bg3 {[%emt 0:02:57]} Ng5 {[%emt 0:07:16]} 17. h4 {[%emt 0:06:45]} Ne6 {[%emt 0:04:04]} 18. f3 {[%emt 0:05:21]} b5 {[%emt 0:05:24]} 19. a3 {[%emt 0:01:44]} Rec8 {[%emt 0:01:33]} 20. Rf2 {[%emt 0:01:37]} b6 {[%emt 0:01:16]} 21. Raf1 {[%emt 0:04:27]} Rf8 {[%emt 0:00:16]} 22. Kh2 {[%emt 0:01:30]} Rac8 {[%emt 0:01:37]} 23. g5 {[%emt 0:02:27]} Nd7 {[%emt 0:00:48]} 24. Bd3 {[%emt 0:01:31]} Nc7 {[%emt 0:01:02]} 25. e4 {[%emt 0:01:25]} e5 {[%emt 0:02:21]} 26. dxe5 {[%emt 0:00:15]} Nxe5 {[%emt 0:00:35]} 27. Bxe5 {[%emt 0:00:50]} Bxe5+ {[%emt 0:00:45]} 28. f4 {[%emt 0:00:08]} Bd6 {[%emt 0:00:01]} 29. e5 {[%emt 0:01:00]} Bc5 {[%emt 0:00:16]} 30. Rf3 {[%emt 0:00:09]} Kg7 31. b4 {[%emt 0:00:41]} Be7 {[%emt 0:01:02]} 32. f5 {[%emt 0:01:28]} gxf5 {[%emt 0:00:04]} 33. Rxf5 {[%emt 0:00:17]} Ra8 {[%emt 0:00:09]} 34. Be2 {[%emt 0:00:51]} Kg6 {[%emt 0:00:48]} 35. Nb1 {[%emt 0:00:28]} c5 {[%emt 0:00:34]} 36. Bd3 {[%emt 0:00:47]} Kg7 {[%emt 0:00:07]} 37. Kh3 {[%emt 0:00:35]} d4 {[%emt 0:01:08]} 38. Be4 {[%emt 0:00:36]} Ra4 {[%emt 0:00:26]} 39. Bc2 {[%emt 0:00:10]} Ra7 {[%emt 0:00:22]} 40. cxd4 {[%emt 0:00:00]} cxd4 {[%emt 0:00:00]} 41. Bb3 {[%emt 0:13:00]} Ne6 {[%emt 0:01:14]} 42. R5f3 {[%emt 0:01:52]} Rd7 {[%emt 0:02:00]} 43. g6 {[%emt 0:05:36]} Kxg6 {[%emt 0:08:39]} 44. Bxe6 {[%emt 0:00:34]} fxe6 {[%emt 0:00:32]} 45. Rxf8 {[%emt 0:00:11]} Bxf8 {[%emt 0:00:08]} 46. Rxf8 {[%emt 0:00:41]} Rd5 {[%emt 0:00:24]} 47. Rf6+ {[%emt 0:00:32]} Kg7 {[%emt 0:00:27]} 48. Rxe6 {[%emt 0:00:06]} Kf7 {[%emt 0:01:08]} 49. Rf6+ {[%emt 0:01:24]} Kg7 {[%emt 0:00:23]} 50. Rf5 {[%emt 0:00:10]} Kg6 {[%emt 0:00:07]} 51. Rg5+ {[%emt 0:00:07]} Kh6 {[%emt 0:00:07]} 52. e6 {[%emt 0:01:08]} 1-0